[Event "Titled Tuesday Blitz November 29 Late 2022"]
[White "Bettalli, Francesco"]
[Black "Kuzmicz, Krystian"]
[WhiteFideId "2816453"]
[BlackFideId "1119125"]
[WhiteElo "2216"]
[BlackElo "2380"]
[Result "0-1"]
[Round "03"]
[TimeControl "180+1"]
[Date "2022.11.30"]
[WhiteClock "0:02:10"]
[BlackClock "0:01:04"]

1. d4 {[%clk 0:03:00]}  g6 {[%clk 0:02:59]} 2. e4 {[%clk 0:02:57]}  Bg7 {[%clk 0:02:59]} 3. Nc3 {[%clk 0:02:57]}  a6 {[%clk 0:03:00]} 4. Be3 {[%clk 0:02:57]}  b5 {[%clk 0:03:00]} 5. g4 {[%clk 0:02:53]}  d6 {[%clk 0:02:57]} 6. Bg2 {[%clk 0:02:53]}  Bb7 {[%clk 0:02:56]} 7. h4 {[%clk 0:02:54]}  h6 {[%clk 0:02:52]} 8. g5 {[%clk 0:02:51]}  h5 {[%clk 0:02:52]} 9. d5 {[%clk 0:02:52]}  c5 {[%clk 0:02:45]} 10. dxc6 {[%clk 0:02:47]}  Nxc6 {[%clk 0:02:45]} 11. Nd5 {[%clk 0:02:47]}  Rc8 {[%clk 0:02:40]} 12. c3 {[%clk 0:02:41]}  Ne5 {[%clk 0:02:37]} 13. Bh3 {[%clk 0:02:39]}  e6 {[%clk 0:02:32]} 14. b3 {[%clk 0:02:29]}  exd5 {[%clk 0:02:29]} 15. Bxc8 {[%clk 0:02:27]}  Qxc8 {[%clk 0:02:27]} 16. exd5 {[%clk 0:02:26]}  Qxc3+ {[%clk 0:02:22]} 17. Kf1 {[%clk 0:02:25]}  Ng4 {[%clk 0:01:20]} 18. Rc1 {[%clk 0:02:21]}  Qxe3 {[%clk 0:01:18]} 19. fxe3 {[%clk 0:02:14]}  Nxe3+ {[%clk 0:01:18]} 20. Kf2 {[%clk 0:02:13]}  Nxd1+ {[%clk 0:01:19]} 21. Rxd1 {[%clk 0:02:14]}  Ne7 {[%clk 0:01:18]} 22. Nf3 {[%clk 0:02:13]}  Kd7 {[%clk 0:01:17]} 23. Rhe1 {[%clk 0:02:14]}  Rc8 {[%clk 0:01:14]} 24. Rd2 {[%clk 0:02:13]}  Nf5 {[%clk 0:01:09]} 25. Rde2 {[%clk 0:02:12]}  Bxd5 {[%clk 0:01:06]} 26. Nd2 {[%clk 0:02:10]}  Bd4+ {[%clk 0:01:04]} 0-1


[Site "https://www.chess.com"]

[Event "Titled Tuesday Blitz November 29 Late 2022"]
[White "Bilan, Danila"]
[Black "Korchmar, Vasiliy"]
[WhiteFideId "24161918"]
[BlackFideId "24131750"]
[WhiteElo "2173"]
[BlackElo "2370"]
[Result "1-0"]
[Round "03"]
[TimeControl "180+1"]
[Date "2022.11.30"]
[WhiteClock "0:00:04"]
[BlackClock "0:00:05"]

1. d4 {[%clk 0:03:00]}  d5 {[%clk 0:02:57]} 2. Nf3 {[%clk 0:02:59]}  Nf6 {[%clk 0:02:57]} 3. c4 {[%clk 0:02:59]}  c6 {[%clk 0:02:58]} 4. Nc3 {[%clk 0:02:59]}  e6 {[%clk 0:02:58]} 5. Bg5 {[%clk 0:02:58]}  Nbd7 {[%clk 0:02:58]} 6. cxd5 {[%clk 0:02:58]}  exd5 {[%clk 0:02:58]} 7. e3 {[%clk 0:02:58]}  h6 {[%clk 0:02:51]} 8. Bh4 {[%clk 0:02:58]}  Be7 {[%clk 0:02:51]} 9. Bd3 {[%clk 0:02:56]}  O-O {[%clk 0:02:51]} 10. Qc2 {[%clk 0:02:55]}  Re8 {[%clk 0:02:51]} 11. O-O {[%clk 0:02:53]}  Ne4 {[%clk 0:02:51]} 12. Bxe7 {[%clk 0:02:49]}  Qxe7 {[%clk 0:02:52]} 13. Bxe4 {[%clk 0:02:48]}  dxe4 {[%clk 0:02:52]} 14. Nd2 {[%clk 0:02:48]}  Nf6 {[%clk 0:02:52]} 15. Nc4 {[%clk 0:02:45]}  Bf5 {[%clk 0:02:42]} 16. Ne2 {[%clk 0:02:30]}  Rad8 {[%clk 0:02:37]} 17. Ng3 {[%clk 0:02:21]}  Bh7 {[%clk 0:02:35]} 18. Rfd1 {[%clk 0:02:16]}  h5 {[%clk 0:02:05]} 19. a3 {[%clk 0:02:05]}  h4 {[%clk 0:02:05]} 20. Ne2 {[%clk 0:01:57]}  h3 {[%clk 0:02:06]} 21. Ng3 {[%clk 0:01:32]}  hxg2 {[%clk 0:02:04]} 22. Kxg2 {[%clk 0:01:33]}  Nd5 {[%clk 0:02:01]} 23. Qe2 {[%clk 0:01:14]}  Qe6 {[%clk 0:01:51]} 24. Rg1 {[%clk 0:01:02]}  f5 {[%clk 0:01:47]} 25. Nh5 {[%clk 0:00:44]}  Bg6 {[%clk 0:01:44]} 26. Ne5 {[%clk 0:00:38]}  Bxh5 {[%clk 0:01:32]} 27. Qxh5 {[%clk 0:00:37]}  c5 {[%clk 0:01:33]} 28. Kh1 {[%clk 0:00:20]}  cxd4 {[%clk 0:01:00]} 29. exd4 {[%clk 0:00:09]}  Nf6 {[%clk 0:00:34]} 30. Qg6 {[%clk 0:00:05]}  Re7 {[%clk 0:00:28]} 31. Rad1 {[%clk 0:00:05]}  Nh7 {[%clk 0:00:13]} 32. Qg5 {[%clk 0:00:06]}  Qf6 {[%clk 0:00:10]} 33. Qh5 {[%clk 0:00:04]}  Nf8 {[%clk 0:00:08]} 34. Rg5 {[%clk 0:00:04]}  f4 {[%clk 0:00:06]} 35. Rdg1 {[%clk 0:00:04]}  e3 {[%clk 0:00:05]} 36. Ng6 {[%clk 0:00:04]} 1-0


[Site "https://www.chess.com"]

[Event "Titled Tuesday Blitz November 29 Late 2022"]
[White "Caruana, Fabiano"]
[Black "Ronka, Erik"]
[WhiteFideId "2020009"]
[BlackFideId "505080"]
[WhiteElo "2847"]
[BlackElo "2264"]
[Result "1-0"]
[Round "03"]
[TimeControl "180+1"]
[Date "2022.11.30"]
[WhiteClock "0:01:20"]
[BlackClock "0:00:17"]

1. d4 {[%clk 0:03:00]}  d5 {[%clk 0:03:00]} 2. Bg5 {[%clk 0:02:59]}  f6 {[%clk 0:02:59]} 3. Bh4 {[%clk 0:02:59]}  Nh6 {[%clk 0:02:58]} 4. f3 {[%clk 0:02:57]}  Nf5 {[%clk 0:02:51]} 5. Bf2 {[%clk 0:02:57]}  e5 {[%clk 0:02:51]} 6. c3 {[%clk 0:02:48]}  e4 {[%clk 0:02:41]} 7. e3 {[%clk 0:02:47]}  exf3 {[%clk 0:02:26]} 8. gxf3 {[%clk 0:02:42]}  Bd6 {[%clk 0:02:23]} 9. Bd3 {[%clk 0:02:41]}  O-O {[%clk 0:02:17]} 10. Qc2 {[%clk 0:02:41]}  g6 {[%clk 0:02:17]} 11. Nd2 {[%clk 0:02:39]}  Re8 {[%clk 0:01:54]} 12. e4 {[%clk 0:02:38]}  Bf4 {[%clk 0:01:42]} 13. O-O-O {[%clk 0:02:37]}  Ne3 {[%clk 0:01:41]} 14. Bxe3 {[%clk 0:02:37]}  Bxe3 {[%clk 0:01:42]} 15. Kb1 {[%clk 0:02:35]}  dxe4 {[%clk 0:01:37]} 16. fxe4 {[%clk 0:02:35]}  c5 {[%clk 0:01:32]} 17. Nc4 {[%clk 0:02:30]}  Bh6 {[%clk 0:01:29]} 18. dxc5 {[%clk 0:02:30]}  Qc7 {[%clk 0:01:19]} 19. Nd6 {[%clk 0:02:30]}  Rf8 {[%clk 0:01:17]} 20. Nf3 {[%clk 0:02:12]}  Na6 {[%clk 0:01:07]} 21. b4 {[%clk 0:01:42]}  Be6 {[%clk 0:01:06]} 22. Nd4 {[%clk 0:01:41]}  Bd7 {[%clk 0:00:58]} 23. Qb3+ {[%clk 0:01:37]}  Kh8 {[%clk 0:00:49]} 24. h4 {[%clk 0:01:35]}  Bf4 {[%clk 0:00:42]} 25. h5 {[%clk 0:01:35]}  g5 {[%clk 0:00:39]} 26. Nf7+ {[%clk 0:01:29]}  Kg7 {[%clk 0:00:30]} 27. h6+ {[%clk 0:01:28]}  Kg6 {[%clk 0:00:31]} 28. e5+ {[%clk 0:01:27]}  f5 {[%clk 0:00:31]} 29. e6 {[%clk 0:01:26]}  Rxf7 {[%clk 0:00:23]} 30. exf7 {[%clk 0:01:22]}  Rf8 {[%clk 0:00:17]} 31. Ne6 {[%clk 0:01:20]} 1-0


[Site "https://www.chess.com"]

[Event "Titled Tuesday Blitz November 29 Late 2022"]
[White "Chlpik, Martin"]
[Black "Fernandez Siles, Luis"]
[WhiteFideId "14923351"]
[BlackFideId "2209420"]
[WhiteElo "2109"]
[BlackElo "2186"]
[Result "1-0"]
[Round "03"]
[TimeControl "180+1"]
[Date "2022.11.30"]
[WhiteClock "0:00:19"]
[BlackClock "0:00:10"]

1. d4 {[%clk 0:03:00]}  Nf6 {[%clk 0:02:59]} 2. c4 {[%clk 0:02:58]}  g6 {[%clk 0:03:00]} 3. Nc3 {[%clk 0:02:58]}  Bg7 {[%clk 0:03:00]} 4. h4 {[%clk 0:02:53]}  c5 {[%clk 0:02:53]} 5. h5 {[%clk 0:02:48]}  Nxh5 {[%clk 0:02:35]} 6. Rxh5 {[%clk 0:02:46]}  gxh5 {[%clk 0:02:36]} 7. d5 {[%clk 0:02:39]}  d6 {[%clk 0:02:25]} 8. e4 {[%clk 0:02:26]}  Bg4 {[%clk 0:02:24]} 9. f3 {[%clk 0:02:21]}  Bd7 {[%clk 0:02:20]} 10. f4 {[%clk 0:02:21]}  Bg4 {[%clk 0:02:20]} 11. Be2 {[%clk 0:02:22]}  Qd7 {[%clk 0:02:09]} 12. f5 {[%clk 0:02:17]}  Rg8 {[%clk 0:02:07]} 13. Nf3 {[%clk 0:02:03]}  Na6 {[%clk 0:02:02]} 14. Ng5 {[%clk 0:02:01]}  Be5 {[%clk 0:01:37]} 15. Bxg4 {[%clk 0:01:21]}  hxg4 {[%clk 0:01:33]} 16. Nxh7 {[%clk 0:01:20]}  O-O-O {[%clk 0:01:20]} 17. Ng5 {[%clk 0:01:17]}  Rh8 {[%clk 0:01:15]} 18. Ke2 {[%clk 0:01:08]}  Rh2 {[%clk 0:01:00]} 19. Qf1 {[%clk 0:00:59]}  Nb4 {[%clk 0:00:44]} 20. Nxf7 {[%clk 0:00:57]}  Nc2 {[%clk 0:00:43]} 21. Nxe5 {[%clk 0:00:33]}  dxe5 {[%clk 0:00:44]} 22. Be3 {[%clk 0:00:32]}  Nxa1 {[%clk 0:00:25]} 23. Bxc5 {[%clk 0:00:32]}  Nc2 {[%clk 0:00:22]} 24. Nb5 {[%clk 0:00:31]}  Nd4+ {[%clk 0:00:19]} 25. Bxd4 {[%clk 0:00:29]}  exd4 {[%clk 0:00:20]} 26. Qf4 {[%clk 0:00:27]}  Rxg2+ {[%clk 0:00:20]} 27. Kf1 {[%clk 0:00:27]}  Qxb5 {[%clk 0:00:14]} 28. cxb5 {[%clk 0:00:24]}  Rxb2 {[%clk 0:00:15]} 29. Qc1+ {[%clk 0:00:22]}  Kd7 {[%clk 0:00:11]} 30. Qxb2 {[%clk 0:00:22]}  d3 {[%clk 0:00:11]} 31. Qd4 {[%clk 0:00:19]}  Rc8 {[%clk 0:00:10]} 32. Qxd3 {[%clk 0:00:19]} 1-0


[Site "https://www.chess.com"]

[Event "Titled Tuesday Blitz November 29 Late 2022"]
[White "Corrales Jimenez, Fidel"]
[Black "Souleidis, Georgios"]
[WhiteFideId "3506690"]
[BlackFideId "4206827"]
[WhiteElo "2890"]
[BlackElo "2595"]
[Result "1-0"]
[Round "03"]
[TimeControl "180+1"]
[Date "2022.11.30"]
[WhiteClock "0:01:38"]
[BlackClock "0:02:02"]

1. e4 {[%clk 0:02:57]}  c5 {[%clk 0:02:59]} 2. Nf3 {[%clk 0:02:55]}  e6 {[%clk 0:03:00]} 3. d4 {[%clk 0:02:55]}  cxd4 {[%clk 0:03:01]} 4. Nxd4 {[%clk 0:02:56]}  Nf6 {[%clk 0:03:01]} 5. Nc3 {[%clk 0:02:56]}  Nc6 {[%clk 0:03:01]} 6. Ndb5 {[%clk 0:02:56]}  Bc5 {[%clk 0:03:01]} 7. Nd6+ {[%clk 0:02:55]}  Ke7 {[%clk 0:03:01]} 8. Bf4 {[%clk 0:02:55]}  e5 {[%clk 0:03:01]} 9. Nf5+ {[%clk 0:02:56]}  Kf8 {[%clk 0:03:01]} 10. Bg5 {[%clk 0:02:57]}  d6 {[%clk 0:03:01]} 11. Ne3 {[%clk 0:02:56]}  h6 {[%clk 0:02:38]} 12. Bxf6 {[%clk 0:02:55]}  Qxf6 {[%clk 0:02:38]} 13. Ncd5 {[%clk 0:02:55]}  Qg6 {[%clk 0:02:39]} 14. Bd3 {[%clk 0:02:53]}  Be6 {[%clk 0:02:35]} 15. O-O {[%clk 0:02:52]}  Rd8 {[%clk 0:02:34]} 16. c3 {[%clk 0:02:52]}  a6 {[%clk 0:02:30]} 17. Kh1 {[%clk 0:02:50]}  Kg8 {[%clk 0:02:30]} 18. b4 {[%clk 0:02:47]}  Ba7 {[%clk 0:02:29]} 19. a4 {[%clk 0:02:47]}  h5 {[%clk 0:02:26]} 20. b5 {[%clk 0:02:40]}  Bxe3 {[%clk 0:02:26]} 21. bxc6 {[%clk 0:02:38]}  Bxd5 {[%clk 0:02:21]} 22. exd5 {[%clk 0:02:37]}  e4 {[%clk 0:02:15]} 23. Bxa6 {[%clk 0:02:05]}  bxa6 {[%clk 0:02:04]} 24. fxe3 {[%clk 0:02:05]}  h4 {[%clk 0:02:05]} 25. h3 {[%clk 0:02:01]}  Rh5 {[%clk 0:02:04]} 26. c4 {[%clk 0:01:59]}  Rg5 {[%clk 0:02:04]} 27. Qe2 {[%clk 0:01:55]}  Rg3 {[%clk 0:02:04]} 28. Rab1 {[%clk 0:01:54]}  f5 {[%clk 0:02:03]} 29. c7 {[%clk 0:01:52]}  Rc8 {[%clk 0:02:01]} 30. Rb8 {[%clk 0:01:52]}  Qe8 {[%clk 0:02:02]} 31. Rfb1 {[%clk 0:01:38]} 1-0


[Site "https://www.chess.com"]

[Event "Titled Tuesday Blitz November 29 Late 2022"]
[White "Curtis, John"]
[Black "Ansh M Shah"]
[WhiteFideId "3200256"]
[BlackFideId "25033379"]
[WhiteElo "2203"]
[BlackElo "2084"]
[Result "0-1"]
[Round "03"]
[TimeControl "180+1"]
[Date "2022.11.30"]
[WhiteClock "0:00:02"]
[BlackClock "0:00:03"]

1. e4 {[%clk 0:03:00]}  c6 {[%clk 0:03:00]} 2. d4 {[%clk 0:02:59]}  d5 {[%clk 0:03:00]} 3. exd5 {[%clk 0:02:59]}  cxd5 {[%clk 0:03:01]} 4. c4 {[%clk 0:03:00]}  Nf6 {[%clk 0:03:02]} 5. Nc3 {[%clk 0:02:57]}  Nc6 {[%clk 0:03:03]} 6. Nf3 {[%clk 0:02:57]}  g6 {[%clk 0:03:03]} 7. cxd5 {[%clk 0:02:50]}  Bg7 {[%clk 0:03:03]} 8. dxc6 {[%clk 0:02:49]}  bxc6 {[%clk 0:03:03]} 9. Bc4 {[%clk 0:02:49]}  O-O {[%clk 0:03:03]} 10. Ne5 {[%clk 0:02:48]}  c5 {[%clk 0:03:00]} 11. Be3 {[%clk 0:02:43]}  Qb6 {[%clk 0:02:54]} 12. Qb3 {[%clk 0:02:37]}  Qd6 {[%clk 0:02:50]} 13. Rd1 {[%clk 0:02:24]}  Rb8 {[%clk 0:02:49]} 14. Bxf7+ {[%clk 0:02:18]}  Kh8 {[%clk 0:02:46]} 15. Qc4 {[%clk 0:02:12]}  Ba6 {[%clk 0:02:28]} 16. Qxc5 {[%clk 0:02:08]}  Rxb2 {[%clk 0:02:23]} 17. Bb3 {[%clk 0:01:51]}  Ne4 {[%clk 0:01:49]} 18. Qxd6 {[%clk 0:01:23]}  exd6 {[%clk 0:01:41]} 19. Rb1 {[%clk 0:01:11]}  Rxb1+ {[%clk 0:01:26]} 20. Nxb1 {[%clk 0:01:11]}  dxe5 {[%clk 0:01:26]} 21. d5 {[%clk 0:01:10]}  Rc8 {[%clk 0:01:06]} 22. f3 {[%clk 0:01:09]}  Nc5 {[%clk 0:00:49]} 23. Bxc5 {[%clk 0:00:57]}  Rxc5 {[%clk 0:00:49]} 24. Kf2 {[%clk 0:00:46]}  Bd3 {[%clk 0:00:47]} 25. Rd1 {[%clk 0:00:44]}  e4 {[%clk 0:00:47]} 26. d6 {[%clk 0:00:37]}  Rc6 {[%clk 0:00:29]} 27. d7 {[%clk 0:00:31]}  Rd6 {[%clk 0:00:28]} 28. fxe4 {[%clk 0:00:23]}  Rxd7 {[%clk 0:00:24]} 29. Bd5 {[%clk 0:00:23]}  Bxe4 {[%clk 0:00:21]} 30. Bxe4 {[%clk 0:00:12]}  Rxd1 {[%clk 0:00:21]} 31. Ke2 {[%clk 0:00:09]}  Rd6 {[%clk 0:00:14]} 32. Nd2 {[%clk 0:00:08]}  Bc3 {[%clk 0:00:09]} 33. Nf3 {[%clk 0:00:05]}  Kg7 {[%clk 0:00:06]} 34. Bd3 {[%clk 0:00:05]}  Bf6 {[%clk 0:00:04]} 35. Bc4 {[%clk 0:00:05]}  Rb6 {[%clk 0:00:05]} 36. Bb3 {[%clk 0:00:05]}  a5 {[%clk 0:00:05]} 37. g4 {[%clk 0:00:04]}  h6 {[%clk 0:00:04]} 38. h4 {[%clk 0:00:04]}  Rb4 {[%clk 0:00:04]} 39. g5 {[%clk 0:00:02]}  hxg5 {[%clk 0:00:04]} 40. hxg5 {[%clk 0:00:03]}  Be7 {[%clk 0:00:04]} 41. Ke3 {[%clk 0:00:03]}  a4 {[%clk 0:00:04]} 42. Bd5 {[%clk 0:00:02]}  a3 {[%clk 0:00:03]} 0-1


[Site "https://www.chess.com"]

[Event "Titled Tuesday Blitz November 29 Late 2022"]
[White "Czopor, Maciej"]
[Black "Wirig, Anthony"]
[WhiteFideId "21805431"]
[BlackFideId "615013"]
[WhiteElo "2629"]
[BlackElo "2913"]
[Result "0-1"]
[Round "03"]
[TimeControl "180+1"]
[Date "2022.11.30"]
[WhiteClock "0:01:22"]
[BlackClock "0:01:34"]

1. c4 {[%clk 0:03:00]}  c5 {[%clk 0:02:52]} 2. Nc3 {[%clk 0:03:01]}  g6 {[%clk 0:02:52]} 3. h4 {[%clk 0:03:00]}  h5 {[%clk 0:02:50]} 4. d3 {[%clk 0:03:00]}  Bg7 {[%clk 0:02:50]} 5. Nf3 {[%clk 0:03:00]}  Nc6 {[%clk 0:02:50]} 6. Bg5 {[%clk 0:02:59]}  d6 {[%clk 0:02:49]} 7. Qd2 {[%clk 0:02:56]}  a6 {[%clk 0:02:47]} 8. g3 {[%clk 0:02:46]}  Rb8 {[%clk 0:02:42]} 9. Bg2 {[%clk 0:02:46]}  b5 {[%clk 0:02:41]} 10. b3 {[%clk 0:02:41]}  b4 {[%clk 0:02:36]} 11. Nd1 {[%clk 0:01:59]}  Bxa1 {[%clk 0:02:34]} 12. Nb2 {[%clk 0:02:00]}  Qa5 {[%clk 0:02:24]} 13. Na4 {[%clk 0:01:58]}  Bc3 {[%clk 0:02:15]} 14. Nxc3 {[%clk 0:01:58]}  bxc3 {[%clk 0:02:15]} 15. Qc1 {[%clk 0:01:58]}  Qxa2 {[%clk 0:02:03]} 16. Qxc3 {[%clk 0:01:57]}  Qb1+ {[%clk 0:01:56]} 17. Kd2 {[%clk 0:01:57]}  Qa2+ {[%clk 0:01:52]} 18. Ke3 {[%clk 0:01:58]}  f6 {[%clk 0:01:49]} 19. Nd2 {[%clk 0:01:55]}  Nd4 {[%clk 0:01:38]} 20. Ra1 {[%clk 0:01:22]}  Qxa1 {[%clk 0:01:34]} 21. Qxa1 {[%clk 0:01:22]}  Nc2+ {[%clk 0:01:34]} 0-1


[Site "https://www.chess.com"]

[Event "Titled Tuesday Blitz November 29 Late 2022"]
[White "Dardha, Daniel"]
[Black "Al-Tarboush, Ward"]
[WhiteFideId "240990"]
[BlackFideId "7601450"]
[WhiteElo "2860"]
[BlackElo "2574"]
[Result "1-0"]
[Round "03"]
[TimeControl "180+1"]
[Date "2022.11.30"]
[WhiteClock "0:00:04"]
[BlackClock "0:00:05"]

1. d4 {[%clk 0:02:59]}  d5 {[%clk 0:02:55]} 2. c4 {[%clk 0:02:59]}  c6 {[%clk 0:02:55]} 3. Nf3 {[%clk 0:02:59]}  Nf6 {[%clk 0:02:55]} 4. e3 {[%clk 0:02:58]}  e6 {[%clk 0:02:55]} 5. Bd3 {[%clk 0:02:53]}  dxc4 {[%clk 0:02:50]} 6. Bxc4 {[%clk 0:02:54]}  Nbd7 {[%clk 0:02:50]} 7. O-O {[%clk 0:02:52]}  Bd6 {[%clk 0:02:50]} 8. Nc3 {[%clk 0:02:51]}  b5 {[%clk 0:02:50]} 9. Be2 {[%clk 0:02:40]}  O-O {[%clk 0:02:50]} 10. Qc2 {[%clk 0:02:40]}  Bb7 {[%clk 0:02:48]} 11. Rd1 {[%clk 0:02:40]}  Qe7 {[%clk 0:02:48]} 12. e4 {[%clk 0:02:40]}  e5 {[%clk 0:02:48]} 13. dxe5 {[%clk 0:02:20]}  Nxe5 {[%clk 0:02:49]} 14. Nd4 {[%clk 0:02:17]}  Neg4 {[%clk 0:02:48]} 15. h3 {[%clk 0:01:58]}  Bh2+ {[%clk 0:02:45]} 16. Kf1 {[%clk 0:01:55]}  Nxf2 {[%clk 0:02:40]} 17. Kxf2 {[%clk 0:01:36]}  b4 {[%clk 0:02:39]} 18. Nf5 {[%clk 0:01:11]}  Qe5 {[%clk 0:02:38]} 19. Bf3 {[%clk 0:00:56]}  bxc3 {[%clk 0:02:34]} 20. Qxc3 {[%clk 0:00:53]}  Qe6 {[%clk 0:02:10]} 21. Bg5 {[%clk 0:00:49]}  Be5 {[%clk 0:02:09]} 22. Qb3 {[%clk 0:00:41]}  h6 {[%clk 0:02:01]} 23. Be3 {[%clk 0:00:33]}  c5 {[%clk 0:01:50]} 24. Qxb7 {[%clk 0:00:29]}  Rab8 {[%clk 0:01:50]} 25. Qe7 {[%clk 0:00:25]}  Rxb2+ {[%clk 0:01:44]} 26. Kg1 {[%clk 0:00:24]}  Rc2 {[%clk 0:01:13]} 27. Rac1 {[%clk 0:00:18]}  Qxa2 {[%clk 0:01:08]} 28. Rxc2 {[%clk 0:00:12]}  Qxc2 {[%clk 0:01:09]} 29. Rc1 {[%clk 0:00:13]}  Qb2 {[%clk 0:01:07]} 30. Qxc5 {[%clk 0:00:10]}  Rd8 {[%clk 0:00:44]} 31. Qxa7 {[%clk 0:00:08]}  Rd7 {[%clk 0:00:20]} 32. Qa8+ {[%clk 0:00:05]}  Kh7 {[%clk 0:00:21]} 33. Rf1 {[%clk 0:00:04]}  Qb3 {[%clk 0:00:13]} 34. Qf8 {[%clk 0:00:04]}  Ng8 {[%clk 0:00:10]} 35. Qc5 {[%clk 0:00:03]}  Bf6 {[%clk 0:00:07]} 36. e5 {[%clk 0:00:03]}  Bd8 {[%clk 0:00:06]} 37. Be4 {[%clk 0:00:03]}  g6 {[%clk 0:00:06]} 38. Qf8 {[%clk 0:00:03]}  gxf5 {[%clk 0:00:05]} 39. Bxf5+ {[%clk 0:00:04]}  Kh8 {[%clk 0:00:05]} 40. Bxh6 {[%clk 0:00:04]}  Qb7 {[%clk 0:00:05]} 41. Qg7# {[%clk 0:00:04]} 1-0


[Site "https://www.chess.com"]

[Event "Titled Tuesday Blitz November 29 Late 2022"]
[White "Darini, Pouria"]
[Black "Gonzalez, Francisco Silva"]
[WhiteFideId "12502200"]
[BlackFideId "1512285"]
[WhiteElo "2483"]
[BlackElo "2159"]
[Result "1-0"]
[Round "03"]
[TimeControl "180+1"]
[Date "2022.11.30"]
[WhiteClock "0:00:07"]
[BlackClock "0:00:07"]

1. e4 {[%clk 0:03:00]}  e5 {[%clk 0:02:55]} 2. Nf3 {[%clk 0:03:01]}  Nc6 {[%clk 0:02:54]} 3. Bb5 {[%clk 0:03:01]}  a6 {[%clk 0:02:54]} 4. Ba4 {[%clk 0:03:01]}  Nf6 {[%clk 0:02:54]} 5. d3 {[%clk 0:03:02]}  b5 {[%clk 0:02:54]} 6. Bb3 {[%clk 0:03:02]}  Bc5 {[%clk 0:02:55]} 7. O-O {[%clk 0:03:02]}  d6 {[%clk 0:02:55]} 8. a4 {[%clk 0:03:02]}  Bg4 {[%clk 0:02:55]} 9. c3 {[%clk 0:03:02]}  O-O {[%clk 0:02:54]} 10. Nbd2 {[%clk 0:03:02]}  h6 {[%clk 0:02:53]} 11. Re1 {[%clk 0:03:02]}  Bb6 {[%clk 0:02:52]} 12. Nf1 {[%clk 0:03:01]}  Ne7 {[%clk 0:02:53]} 13. Be3 {[%clk 0:03:00]}  Bxe3 {[%clk 0:02:48]} 14. Nxe3 {[%clk 0:03:01]}  Ng6 {[%clk 0:02:43]} 15. Nxg4 {[%clk 0:03:01]}  Nxg4 {[%clk 0:02:43]} 16. d4 {[%clk 0:02:59]}  c5 {[%clk 0:02:43]} 17. Bd5 {[%clk 0:02:36]}  Rb8 {[%clk 0:02:43]} 18. axb5 {[%clk 0:02:36]}  axb5 {[%clk 0:02:42]} 19. dxc5 {[%clk 0:02:34]}  dxc5 {[%clk 0:02:41]} 20. Ra7 {[%clk 0:02:29]}  Qb6 {[%clk 0:02:37]} 21. Rxf7 {[%clk 0:02:17]}  Rxf7 {[%clk 0:02:26]} 22. Bxf7+ {[%clk 0:02:18]}  Kxf7 {[%clk 0:02:25]} 23. Qd7+ {[%clk 0:02:18]}  Kg8 {[%clk 0:02:23]} 24. Qxg4 {[%clk 0:02:18]}  Rd8 {[%clk 0:02:20]} 25. h4 {[%clk 0:02:09]}  Qf6 {[%clk 0:02:20]} 26. g3 {[%clk 0:02:01]}  Rf8 {[%clk 0:02:17]} 27. Kg2 {[%clk 0:01:57]}  Rd8 {[%clk 0:02:14]} 28. Qf5 {[%clk 0:01:47]}  Rd3 {[%clk 0:02:12]} 29. Qxf6 {[%clk 0:01:34]}  gxf6 {[%clk 0:02:11]} 30. Ra1 {[%clk 0:01:35]}  b4 {[%clk 0:02:11]} 31. Ra7 {[%clk 0:00:53]}  bxc3 {[%clk 0:02:09]} 32. bxc3 {[%clk 0:00:54]}  Rxc3 {[%clk 0:02:09]} 33. h5 {[%clk 0:00:55]}  Nh8 {[%clk 0:02:01]} 34. Nh4 {[%clk 0:00:51]}  Nf7 {[%clk 0:02:02]} 35. Nf5 {[%clk 0:00:51]}  c4 {[%clk 0:01:54]} 36. Ra8+ {[%clk 0:00:47]}  Kh7 {[%clk 0:01:52]} 37. Ra7 {[%clk 0:00:47]}  Kg8 {[%clk 0:01:53]} 38. Ra8+ {[%clk 0:00:48]}  Kh7 {[%clk 0:01:53]} 39. Rf8 {[%clk 0:00:31]}  Ng5 {[%clk 0:01:52]} 40. Rxf6 {[%clk 0:00:31]}  Nxe4 {[%clk 0:01:52]} 41. Rxh6+ {[%clk 0:00:32]}  Kg8 {[%clk 0:01:53]} 42. Rg6+ {[%clk 0:00:18]}  Kf7 {[%clk 0:01:47]} 43. Nd6+ {[%clk 0:00:19]}  Nxd6 {[%clk 0:01:45]} 44. Rxd6 {[%clk 0:00:19]}  Rc1 {[%clk 0:01:44]} 45. Rc6 {[%clk 0:00:17]}  e4 {[%clk 0:01:41]} 46. g4 {[%clk 0:00:17]}  c3 {[%clk 0:01:40]} 47. g5 {[%clk 0:00:17]}  c2 {[%clk 0:01:33]} 48. h6 {[%clk 0:00:17]}  e3 {[%clk 0:01:23]} 49. g6+ {[%clk 0:00:15]}  Ke7 {[%clk 0:01:24]} 50. fxe3 {[%clk 0:00:16]}  Kd7 {[%clk 0:01:21]} 51. Rc3 {[%clk 0:00:11]}  Ra1 {[%clk 0:00:07]} 52. h7 {[%clk 0:00:12]}  Ra2 {[%clk 0:00:05]} 53. Kf3 {[%clk 0:00:10]}  c1=B {[%clk 0:00:04]} 54. Rxc1 {[%clk 0:00:09]}  Rh2 {[%clk 0:00:03]} 55. g7 {[%clk 0:00:10]}  Rh3+ {[%clk 0:00:04]} 56. Ke4 {[%clk 0:00:10]}  Rxh7 {[%clk 0:00:05]} 57. g8=Q {[%clk 0:00:10]}  Re7+ {[%clk 0:00:06]} 58. Kd5 {[%clk 0:00:10]}  Rg7 {[%clk 0:00:06]} 59. Qxg7+ {[%clk 0:00:10]}  Kd8 {[%clk 0:00:07]} 60. Rh1 {[%clk 0:00:07]} 1-0


[Site "https://www.chess.com"]

[Event "Titled Tuesday Blitz November 29 Late 2022"]
[White "Droin, Augustin"]
[Black "Mesa Cruz, Juan Carlos"]
[WhiteFideId "45105987"]
[BlackFideId "6423400"]
[WhiteElo "2316"]
[BlackElo "2059"]
[Result "1-0"]
[Round "03"]
[TimeControl "180+1"]
[Date "2022.11.30"]
[WhiteClock "0:01:10"]
[BlackClock "0:01:46"]

1. e4 {[%clk 0:02:54]}  c5 {[%clk 0:02:59]} 2. Nf3 {[%clk 0:02:53]}  e6 {[%clk 0:02:57]} 3. d4 {[%clk 0:02:53]}  cxd4 {[%clk 0:02:57]} 4. Nxd4 {[%clk 0:02:54]}  a6 {[%clk 0:02:58]} 5. g3 {[%clk 0:02:47]}  Nc6 {[%clk 0:02:53]} 6. Bg2 {[%clk 0:02:44]}  d6 {[%clk 0:02:53]} 7. O-O {[%clk 0:01:59]}  Bd7 {[%clk 0:02:26]} 8. c4 {[%clk 0:01:54]}  Rc8 {[%clk 0:02:20]} 9. b3 {[%clk 0:01:44]}  Nxd4 {[%clk 0:02:04]} 10. Qxd4 {[%clk 0:01:42]}  Be7 {[%clk 0:02:04]} 11. Bb2 {[%clk 0:01:39]}  Bf6 {[%clk 0:02:03]} 12. Qd2 {[%clk 0:01:39]}  Bxb2 {[%clk 0:02:02]} 13. Qxb2 {[%clk 0:01:40]}  Qf6 {[%clk 0:02:01]} 14. Nc3 {[%clk 0:01:29]}  Ne7 {[%clk 0:01:59]} 15. Rad1 {[%clk 0:01:27]}  Rc6 {[%clk 0:01:49]} 16. f4 {[%clk 0:01:15]}  O-O {[%clk 0:01:46]} 17. e5 {[%clk 0:01:11]}  dxe5 {[%clk 0:01:46]} 18. Rxd7 {[%clk 0:01:10]} 1-0


[Site "https://www.chess.com"]